bitfinex/quotes_ETHUSD_20251010
["timestamp","ask_amount","ask_price","bid_price","bid_amount"]
[1760124062018,0.099,4026.2,4023.2,2.48558361]
[1760124062320,0.001,4026.9,4024.5,0.6336]
[1760124062521,0.001,4026.9,4023.4,0.6336]
[1760124062522,0.001,4026.9,4024.7,0.6336]
[1760124062734,0.001,4026.9,4024.9,0.6336]
[1760124062943,0.001,4026.9,4025.0,0.02484472]
[1760124063108,0.001,4026.9,4025.2,0.6336]
[1760124063515,0.001,4026.9,4025.3,14.5]
[1760124064020,0.001,4026.9,4025.4,4.087]
[1760124064216,0.001,4026.9,4025.5,1.88354163]
[1760124064415,0.001,4026.9,4025.5,1.8587]
[1760124064649,0.001,4026.9,4025.6,0.02484101]
[1760124065016,0.001,4026.9,4025.6,4.087]
[1760124065216,2.48357668,4026.5,4023.1,17.38288878]
[1760124065417,0.1021,4026.9,4022.3,1.16998111]
[1760124065418,0.1011,4026.4,4024.1,0.4349]
[1760124065654,4.40373155,4026.2,4024.2,0.454]
[1760124065850,2.48404293,4025.7,4024.2,0.454]
[1760124066036,2.48411464,4025.6,4024.1,0.4349]
[1760124066221,0.2148,4025.8,4023.8,4.089]
[1760124066418,0.1011,4026.1,4023.9,2.2938]
[1760124066728,10.0,4026.8,4024.0,0.6336]
[1760124066729,0.1023,4026.8,4024.0,0.6336]
[1760124067060,0.001,4026.9,4024.2,0.6336]
[1760124067357,0.001,4026.9,4024.4,2.48481489]
[1760124067557,0.001,4026.9,4025.1,0.6336]
[1760124067758,0.001,4026.9,4025.3,0.6336]
[1760124068064,0.001,4026.9,4025.4,4.09]
[1760124068360,0.1023,4026.8,4023.9,1.8589]
[1760124068525,2.48382545,4026.1,4024.5,6.475]
[1760124068721,0.1023,4026.1,4024.3,0.4349]
[1760124069033,0.1023,4026.1,4023.8,0.4349]
[1760124069363,1.92,4025.9,4023.9,6.163]
[1760124069532,3.469,4026.6,4024.0,0.4349]
[1760124069533,0.38967669,4025.6,4024.0,0.4349]
[1760124069856,0.38967669,4025.6,4024.2,0.6336]
[1760124070057,2.58537635,4027.3,4025.3,1.23]
[1760124070355,0.38960929,4026.3,4025.4,6.82044225]
[1760124070555,0.38960929,4026.3,4025.5,18.59]
[1760124070779,0.38960929,4026.3,4025.3,1.23]
[1760124070956,2.48422517,4025.4,4025.3,1.23]
[1760124071161,2.58762517,4025.4,4025.3,1.23]
[1760124071482,2.485199,4023.9,4023.1,1.23]
[1760124071773,11.92,4025.2,4023.1,1.23]
[1760124071774,2.4131412,4025.4,4023.1,1.23]
[1760124071983,4.40428688,4025.3,4023.1,1.23]
[1760124072192,0.4931412,4025.4,4023.7,0.18333594]
[1760124072350,2.48447204,4025.0,4023.7,0.05485085]
[1760124072671,2.48506422,4024.1,4023.7,0.05485085]
[1760124072970,2.4850277,4024.1,4024.0,1.23]
[1760124073695,2.0234,4024.9,4024.0,1.23]
[1760124073972,2.4850277,4024.1,4024.0,1.23]
[1760124074173,0.1034,4024.1,4024.0,1.23]
[1760124074386,1.92,4024.1,4024.0,1.23]
[1760124074552,4.4050277,4024.1,4024.0,1.23]
[1760124074750,1.92,4024.1,4024.0,1.23]
[1760124075857,2.48371782,4026.3,4024.0,1.23]
[1760124075858,2.48460612,4024.8,4024.0,1.23]
[1760124076045,1.866,4024.9,4024.0,1.23]
[1760124076372,2.48466314,4024.7,4024.0,1.23]
[1760124076575,2.48416589,4025.5,4024.1,0.02485027]
[1760124076775,4.82010714,4025.6,4024.0,1.48148509]
[1760124076974,2.48409472,4025.7,4024.0,1.48148509]
[1760124077180,2.48452733,4025.0,4024.0,1.48148509]
[1760124077378,0.1045,4024.9,4024.0,1.23]
[1760124077577,1.92,4024.5,4024.0,1.23]
[1760124077877,1.92,4024.7,4024.0,1.23]
[1760124078093,2.4850277,4024.1,4024.0,1.23]
[1760124078274,2.48521298,4023.8,4023.7,0.05485085]
[1760124078644,2.0268,4023.8,4023.7,1.28485085]
[1760124078883,4.40521298,4023.8,4023.7,1.28485085]
[1760124079101,1.92,4023.8,4023.7,1.28485085]
[1760124079252,1.92,4023.8,4023.7,1.53633594]
[1760124079451,1.92,4023.8,4023.7,1.28485085]
[1760124079854,0.1081,4025.1,4023.7,1.28485085]
[1760124080250,2.48446505,4025.1,4024.0,1.23]
[1760124080562,0.1092,4026.2,4024.1,0.02485027]
[1760124080764,0.1092,4026.2,4024.0,1.23]
[1760124080962,0.1092,4026.2,4024.1,0.63406]
[1760124081303,2.4850277,4024.1,4024.0,1.23]
[1760124081529,4.5158277,4024.1,4024.0,1.23]
[1760124081696,4.5158277,4024.1,4024.0,2.4589]
[1760124082188,1.92,4024.6,4024.0,2.4589]
[1760124082389,2.4850277,4024.1,4024.0,2.4589]
[1760124082745,2.4849745,4024.2,4024.0,2.4589]
[1760124082901,0.38979394,4024.5,4024.0,2.4589]
[1760124083073,0.38979394,4024.5,4024.0,3.6889]
[1760124083074,2.4850277,4024.1,4024.0,3.6889]
[1760124083276,2.5840277,4024.1,4024.0,3.6889]
[1760124083474,4.5040277,4024.1,4024.0,3.6889]
[1760124083677,4.5040277,4024.1,4024.0,3.6879]
[1760124083875,44.5040277,4024.1,4024.0,3.6879]
[1760124084115,34.5040277,4024.1,4024.0,3.6879]
[1760124084317,45.7170277,4024.1,4024.0,3.6879]
[1760124084521,45.7170277,4024.1,4023.7,1.28485085]
[1760124084522,4.40508946,4024.0,4023.7,1.28485085]
[1760124084827,51.8670277,4024.1,4023.6,0.002]
[1760124084828,44.40527474,4023.7,4023.6,0.002]
[1760124084976,4.40564539,4023.1,4020.6,4.078]
[1760124085177,0.0997,4024.2,4022.2,0.02486201]
[1760124085427,2.4851178,4024.0,4022.5,4.078]
[1760124085719,2.58466749,4024.2,4022.5,4.078]
[1760124085720,0.0997,4024.2,4022.5,4.078]
[1760124085903,0.0997,4024.2,4023.1,0.02485645]
[1760124086074,2.0197,4024.2,4023.7,1.23]
[1760124086275,0.2787,4024.8,4023.7,1.23]
[1760124086534,2.317,4024.7,4023.7,1.23]
[1760124086732,2.48471897,4024.6,4023.7,1.23]
[1760124087031,4.80167407,4024.7,4023.7,1.23]
[1760124087196,2.48494848,4024.3,4023.7,1.23]
[1760124087398,2.4850179,4024.2,4024.0,1.23]
[1760124087596,2.4850277,4024.1,4024.0,1.23]
[1760124087842,2.5854277,4024.1,4024.0,1.23]
[1760124088007,28.4024277,4024.1,4024.0,1.23]
[1760124088600,10.6484277,4024.1,4024.0,1.23]
[1760124088930,8.5744277,4024.1,4024.0,2.46]
[1760124089120,4.5054277,4024.1,4024.0,2.46]
[1760124089497,8.5734277,4024.1,4024.0,2.46]
[1760124089699,1.92,4024.1,4024.0,2.46]
[1760124089905,6.0864,4024.1,4024.0,2.46]
[1760124090134,8.5714277,4024.1,4024.0,2.46]
[1760124091417,6.0864,4024.1,4024.0,2.46]
[1760124091642,36.0864,4024.1,4024.0,2.459]
[1760124091834,47.2994,4024.1,4024.0,2.459]
[1760124092141,45.7184277,4024.1,4024.0,2.459]
[1760124092451,10.6424277,4024.1,4024.0,2.459]
[1760124092943,14.8304277,4024.1,4024.0,2.459]
[1760124093146,10.6424277,4024.1,4024.0,2.459]
[1760124093302,4.5054277,4024.1,4024.0,3.689]
[1760124093502,10.6394277,4024.1,4024.0,3.689]
[1760124093705,40.6394277,4024.1,4024.0,3.689]
[1760124094136,51.8524277,4024.1,4024.0,3.689]
[1760124094304,10.18964539,4023.1,4022.1,1.23]
[1760124094504,2.48620158,4022.2,4022.1,1.23]
[1760124094704,2.48632521,4022.0,4021.6,0.002]
[1760124094907,2.48684656,4021.2,4019.0,0.4646]
[1760124095112,11.92,4021.8,4018.7,2.072]
[1760124095113,1.92,4021.8,4020.1,0.024875]
[1760124095334,0.1603,4022.9,4019.6,0.4646]
[1760124095335,1.92,4021.6,4019.6,0.4646]
[1760124095536,1.92,4021.4,4018.8,0.4646]
[1760124095736,1.92,4021.4,4018.4,0.2249]
[1760124095737,1.92,4021.2,4018.4,0.2249]
[1760124095941,5.979,4021.1,4018.8,1.302]
[1760124096244,35.979,4021.1,4018.8,1.302]
[1760124096406,34.40688169,4021.1,4018.5,0.01042499]
[1760124096605,2.48740642,4020.3,4018.5,0.01042499]
[1760124096802,1.92,4020.1,4018.5,0.01042499]
[1760124097205,2.48750031,4020.1,4018.5,0.01042499]
[1760124097420,2.55246188,4020.1,4018.5,0.01042499]
[1760124097604,1.92,4020.1,4018.5,0.01042499]
[1760124097807,5.579,4020.1,4018.5,0.01042499]
[1760124098064,1.92,4020.1,4018.5,0.01042499]
[1760124098565,5.03909,4020.1,4018.5,0.01042499]
[1760124098768,5.976,4020.1,4018.5,0.01042499]
[1760124099057,6.60584531,4020.1,4018.5,0.03530989]
[1760124099209,15.47834562,4020.1,4018.5,0.01042499]
[1760124099409,17.55134562,4020.1,4018.5,0.01042499]
[1760124100029,15.53234562,4020.1,4018.5,0.01042499]
[1760124100230,41.18134562,4020.1,4020.0,4.27]
[1760124100814,35.03734562,4020.1,4020.0,1e-08]
[1760124101010,53.03894562,4020.1,4020.0,1e-08]
[1760124101206,46.26234562,4020.1,4020.0,1e-08]
[1760124101411,46.26234562,4020.1,4016.9,0.00119571]
[1760124101412,4.40768595,4019.8,4016.9,0.00119571]
[1760124101608,2.4886777,4018.2,4016.9,0.00119571]
[1760124101948,2.48898623,4017.7,4016.9,0.00119571]
[1760124102249,2.0975,4017.0,4016.9,0.00119571]
[1760124102443,10.73591996,4017.0,4016.9,0.00019571]
[1760124102634,1.92,4016.8,4013.7,0.2162]
[1760124102834,2.48979185,4016.4,4013.7,0.2162]
[1760124103056,2.0186,4016.4,4013.7,0.2162]
[1760124103264,1.92,4016.4,4014.4,0.503]
[1760124103417,1.92,4016.4,4015.1,0.4646]
[1760124104335,3.768,4016.4,4015.1,0.4646]
[1760124104509,3.768,4016.4,4014.2,14.5]
[1760124104717,6.003,4016.4,4014.7,0.4646]
[1760124105135,1.92,4016.4,4014.7,0.4646]
[1760124105362,1.29438613,4019.7,4014.5,0.503]
[1760124105363,0.0994,4017.5,4015.3,0.4646]
[1760124105537,2.0371,4017.4,4014.6,0.4646]
[1760124105848,1.92,4017.1,4016.3,1.77471895]
[1760124106144,2.48979185,4016.4,4016.3,1.77471895]
[1760124106334,38.59999185,4016.4,4016.3,2.3e-07]
[1760124106534,8.59999185,4016.4,4016.3,2.3e-07]
[1760124106847,10.67399185,4016.4,4016.3,2.3e-07]
[1760124107048,2.0192,4016.4,4016.3,2.3e-07]
[1760124107250,34.50899185,4016.4,4016.3,1.23000023]
[1760124107449,39.23259185,4016.4,4016.3,1.6e-07]
[1760124107750,47.67579803,4016.4,4016.3,1.6e-07]
[1760124107950,49.10579803,4016.4,4016.3,1.6e-07]
[1760124108151,47.80759185,4016.4,4016.3,1.6e-07]
[1760124108654,0.6336,4016.0,4013.6,0.004186]
[1760124108839,10.0,4015.7,4013.6,0.3046046]
[1760124109038,2.49047393,4015.3,4013.6,0.3046046]
[1760124109242,0.1464,4013.7,4013.6,0.004186]
[1760124109428,0.1011,4015.2,4013.6,0.004186]
[1760124109637,32.233,4015.1,4013.6,0.004186]
[1760124109820,30.0,4014.8,4013.6,0.004186]
[1760124110019,0.1015,4015.0,4013.6,0.004186]
[1760124110020,0.146,4013.7,4013.6,0.004186]
[1760124110221,9.667,4013.7,4010.5,0.02493454]
[1760124110458,9.667,4013.7,4009.1,0.004186]
[1760124110459,1.20187775,4012.7,4009.1,0.004186]
[1760124110658,1.92,4009.3,4006.7,2.01256679]
[1760124110953,1.92,4008.9,4006.8,0.30125668]
[1760124111161,30.0,4008.7,4006.8,0.30125668]
[1760124111316,4.379,4008.8,4006.8,0.30125668]
[1760124111666,12.355,4009.4,4006.9,0.45485694]
[1760124111882,3.847,4009.3,4006.9,4.30495694]
[1760124112072,0.0595,4010.5,4007.0,1.34236804]
[1760124112371,1.27818659,4012.1,4007.1,0.4548557]
[1760124112574,30.0,4011.6,4007.2,5.32165508]
[1760124112715,1.24495488,4011.9,4007.7,14.5]
[1760124112952,0.06594915,4012.4,4008.6,2.91999998]
[1760124113150,0.53179025,4014.0,4009.6,0.99999998]
[1760124113382,2.49056596,4015.2,4010.2,4.41364121]
[1760124113598,2.49056596,4015.2,4009.7,0.45483952]
[1760124113599,30.0,4015.4,4012.4,14.5]
[1760124113779,0.1445,4015.6,4012.5,4.7229]
[1760124113966,7.786,4017.0,4012.2,0.2288]
[1760124113967,2.076,4017.2,4012.8,2.49197326]
[1760124114166,0.13005955,4018.4,4013.0,2.49190132]
[1760124114167,12.338,4017.5,4013.0,2.49190132]
[1760124114374,0.0595,4017.5,4013.2,4.41177713]
[1760124114576,0.0595,4017.5,4013.1,10.93381839]
[1760124114577,30.0,4017.4,4015.4,14.5]
[1760124114779,30.0,4017.3,4013.3,1.23]
[1760124115090,0.0595,4017.5,4014.1,4.297]
[1760124115265,0.0595,4017.5,4014.7,14.5]
[1760124115602,1.24232543,4017.2,4014.7,14.5]
[1760124115748,2.076,4017.1,4013.3,1.23]
[1760124116074,30.0,4015.7,4013.3,1.23]
[1760124116391,11.92,4015.2,4013.3,1.23]
[1760124116562,4.4455,4015.6,4013.3,1.23]
[1760124116563,0.1445,4015.6,4013.3,2.177]
[1760124116781,0.39070917,4014.8,4013.4,14.5]
[1760124117101,1.24232543,4017.2,4013.4,14.5]
[1760124117269,1.92,4016.8,4013.4,14.5]
[1760124117469,1.92,4016.5,4013.5,6.372]
[1760124117672,1.92,4016.2,4013.5,6.372]
[1760124117871,1.92,4016.6,4013.6,14.5]
[1760124118112,1.92,4016.4,4013.3,1.23]
[1760124118273,30.0,4016.1,4013.3,1.23]
[1760124118468,1.92,4015.8,4013.4,0.948]
[1760124118688,1.92,4015.5,4013.4,0.948]
[1760124118884,1.92,4015.1,4013.4,0.948]
[1760124119084,2.49122669,4014.1,4013.3,1.23]
[1760124119282,1.92,4014.2,4013.3,1.23]
[1760124119470,1.92,4013.8,4013.3,1.23]
[1760124119670,0.146,4013.7,4013.3,1.23]
[1760124119867,1.92,4014.6,4013.3,1.23]
[1760124120092,0.001,4015.6,4013.3,3.307]
[1760124120295,0.001,4015.6,4013.4,0.4299]
[1760124120467,0.001,4015.6,4013.5,0.0249159]
[1760124120681,30.1445,4015.5,4013.5,0.0249159]
[1760124120882,4.375,4015.4,4013.3,1.23]
[1760124121207,0.1445,4015.5,4013.3,1.23]
[1760124121506,0.1445,4015.5,4013.4,2.33791652]
[1760124121667,0.1445,4015.5,4013.5,8.568]
[1760124121867,0.001,4015.6,4013.6,0.45481528]
[1760124122097,0.001,4015.6,4014.7,1.23]
[1760124122309,0.1585,4018.8,4015.5,0.2288]
[1760124122508,0.3208,4019.2,4015.6,21.44580287]
[1760124122805,0.2243,4019.1,4015.5,0.4299]
[1760124123005,30.0,4018.8,4015.7,4.396]
[1760124123168,2.48857199,4018.4,4015.7,4.396]
[1760124123374,1.92,4017.9,4015.7,4.396]
[1760124123568,2.0387,4017.8,4015.0,0.4299]
[1760124123803,30.0,4017.5,4015.0,0.4299]
[1760124124004,30.0,4018.8,4015.1,0.02490597]
[1760124124168,6.487,4018.7,4015.5,2.49030544]
[1760124124373,10.0,4021.1,4015.7,0.6336]
[1760124124589,30.0,4019.9,4015.8,10.2959]
[1760124124784,4.41,4019.8,4015.9,0.45480101]
[1760124124980,30.0,4019.6,4015.3,1.707]
[1760124125206,2.5536,4019.2,4015.4,0.4299]
[1760124125406,2.48842705,4018.7,4015.4,0.45480411]
[1760124125572,1.92,4019.9,4015.4,0.4299]
[1760124125917,1.92,4019.1,4015.4,0.4299]
[1760124126098,6.86482907,4020.2,4015.4,0.4299]
[1760124126099,0.37482907,4020.2,4016.1,0.6336]
[1760124126300,1.25104159,4021.8,4016.8,2.48953474]
[1760124126301,0.146,4020.0,4016.8,2.48953474]
[1760124126476,0.0015,4021.8,4017.0,0.6336]
[1760124126477,0.51631515,4020.4,4017.0,0.6336]
[1760124126810,0.51631515,4020.4,4016.9,6.9209]
[1760124126811,30.0,4021.7,4017.3,0.6336]
[1760124126972,0.53211054,4021.8,4017.5,0.6336]
[1760124127180,0.1445,4022.0,4017.6,0.4299]
[1760124127475,0.1445,4022.0,4016.2,3.6028]
[1760124127476,30.0,4021.6,4016.2,3.6028]
[1760124127712,3.1689006,4021.3,4016.3,1.8839]
[1760124128012,0.6336,4018.9,4015.5,0.2288]
[1760124128219,2.48892849,4017.8,4015.8,6.489]
[1760124128380,2.48895284,4017.8,4015.8,6.489]
[1760124128573,0.035,4018.1,4015.4,0.4299]
[1760124128808,0.39045443,4017.4,4015.8,4.416]
[1760124129505,0.39045443,4017.4,4015.4,4.413]
[1760124129822,0.39045443,4017.4,4015.4,4.411]
[1760124130026,0.39045443,4017.4,4014.7,7.719]
[1760124130027,0.39045443,4017.4,4014.7,1.23]
[1760124130175,30.6336,4017.3,4014.7,1.23]
[1760124130373,2.537,4017.1,4014.7,1.23]
[1760124130580,2.5536,4016.8,4014.7,1.23]
[1760124130889,4.41028787,4015.6,4015.5,1.23]
[1760124131317,1.92,4017.6,4015.5,1.23]
[1760124131620,2.5536,4017.5,4015.5,1.23]
[1760124132156,1.92,4016.6,4015.5,1.23]
[1760124132361,0.6336,4016.1,4015.5,1.23]
[1760124132650,2.1044,4015.6,4015.5,1.23]
[1760124132831,2.5536,4015.5,4015.1,1.23]
[1760124133148,4.41053596,4015.2,4015.1,1.23]
[1760124133352,1.92,4015.2,4015.1,1.23]
[1760124133665,4.41053596,4015.2,4015.1,1.23]
[1760124134005,1.92,4015.2,4015.1,1.23]
[1760124134756,10.0,4018.1,4015.1,1.23]
[1760124135051,30.0,4017.9,4016.1,1.23]
[1760124135256,2.48991584,4016.2,4016.1,1.23]
[1760124135479,36.90491584,4016.2,4016.1,1.6e-07]
[1760124135679,49.98235848,4016.2,4016.1,1.6e-07]
[1760124135901,43.72491584,4016.2,4016.1,1.6e-07]
[1760124136100,48.77251584,4016.2,4016.1,1.6e-07]
[1760124136391,48.77251584,4016.2,4015.1,1.23]
[1760124136392,30.0,4015.8,4015.1,1.23]
[1760124136538,30.1844,4015.2,4015.1,1.23]
[1760124136740,32.738,4015.2,4015.1,1.23]
[1760124136940,50.464,4015.2,4015.1,0.94430932]
[1760124137138,2.49105889,4014.4,4013.6,1.6e-07]
[1760124137342,35.16376672,4013.7,4013.6,1.6e-07]
[1760124137576,39.57676672,4013.7,4013.6,1.6e-07]
[1760124137885,39.57676672,4013.7,4012.9,1e-08]
[1760124137886,6.25774483,4013.0,4012.9,1e-08]
[1760124138091,51.91274483,4013.0,4012.9,1e-08]
[1760124138392,46.29050132,4013.0,4012.9,1e-08]
[1760124138796,2.5536,4012.7,4009.7,0.02493952]
[1760124139098,30.0,4012.2,4008.4,0.4477]
[1760124139299,2.5536,4011.9,4008.6,0.02694636]
[1760124139504,30.0,4011.6,4008.6,0.992]
[1760124139661,30.0,4013.3,4009.5,0.4477]
[1760124139863,1.92,4013.0,4009.7,0.4477]
[1760124140094,1.92,4012.6,4008.8,0.4477]
[1760124140296,0.1652,4009.7,4009.6,1.031]
[1760124140594,0.1652,4009.7,4008.6,0.002]
[1760124140595,1.92,4009.4,4008.6,0.002]
[1760124140765,10.6145743,4008.7,4008.6,0.002]
[1760124140948,2.49482324,4008.3,4006.7,3.24256679]
[1760124141151,2.4956236,4007.1,4006.7,3.24256679]
[1760124141371,0.1486,4007.2,4006.7,3.24256679]
[1760124141573,1.92,4007.0,4006.7,3.24256679]
[1760124141786,31.92,4006.9,4006.7,3.24256679]
[1760124141986,30.0,4006.8,4006.7,3.24256679]
[1760124142209,2.019,4006.8,4006.7,3.17142553]
[1760124142350,43.9146,4006.8,4006.7,3.17142553]
[1760124142552,50.81511527,4006.8,4006.7,3.17142553]
[1760124142749,30.6336,4006.6,4006.5,1e-08]
[1760124143198,0.099,4008.3,4006.5,1e-08]
[1760124143510,10.1652,4009.7,4006.5,1e-08]
[1760124143511,0.066,4008.9,4006.5,1e-08]
[1760124143807,30.0,4008.7,4006.5,1e-08]
[1760124144023,0.1652,4009.7,4006.6,0.4477]
[1760124144303,0.133,4009.6,4006.7,14.864]
[1760124144505,0.1652,4009.7,4006.7,14.864]
[1760124144804,0.241,4009.5,4006.8,6.9577]
[1760124145014,10.0,4010.9,4006.9,6.98265694]
[1760124145015,0.1651,4010.7,4006.9,6.98265694]
[1760124145214,0.1651,4010.7,4007.1,0.6336]
[1760124145373,0.3793374,4012.1,4007.7,14.5]
[1760124145574,3.14031853,4013.7,4007.7,14.5]
[1760124145575,30.0,4011.8,4007.8,11.3737]
[1760124145868,2.49290469,4011.4,4008.0,0.6336]
[1760124146197,0.078,4011.3,4008.2,0.6336]
[1760124146518,30.0,4011.4,4008.5,14.5]
[1760124146759,30.0,4010.9,4008.5,14.5]
[1760124147034,4.046,4010.7,4008.1,0.4477]
[1760124147171,4.428,4010.6,4008.1,0.4477]
[1760124147369,2.49353404,4010.4,4008.2,14.5]
[1760124147607,1.92,4010.5,4008.3,4.426]
[1760124147922,2.49330736,4010.8,4008.3,4.426]
[1760124148209,0.071,4024.9,4008.3,4.426]
[1760124148210,4.425,4011.1,4008.4,0.4477]
[1760124148410,4.425,4011.0,4009.6,1.23]
[1760124148709,2.079,4012.0,4009.6,1.23]
[1760124148710,2.49352933,4010.4,4009.6,1.23]
[1760124148877,1.92,4010.2,4009.6,1.23]
[1760124149267,2.49395216,4009.7,4009.6,1.23]
[1760124149673,8.83195216,4009.7,4009.6,3.2e-07]
[1760124149972,39.46555216,4009.7,4009.6,3.2e-07]
[1760124150173,52.38835189,4009.7,4009.6,3.2e-07]
[1760124150707,27.70635189,4009.7,4009.6,3.2e-07]
[1760124150906,22.00883297,4009.7,4009.6,3.2e-07]
[1760124151110,27.70335189,4009.7,4009.6,3.2e-07]
[1760124151317,38.95635189,4009.7,4009.6,3.2e-07]
[1760124151807,10.50623297,4009.7,4009.6,3.2e-07]
[1760124152111,37.30623297,4009.7,4009.6,3.2e-07]
[1760124152273,2.88523297,4009.7,4009.6,3.2e-07]
[1760124152473,0.39128081,4009.7,4009.6,3.2e-07]
[1760124152673,7.30523297,4009.7,4009.6,3.2e-07]
[1760124152923,37.93883297,4009.7,4009.6,3.2e-07]
[1760124153072,39.85883297,4009.7,4009.6,3.2e-07]
[1760124153472,4.80523297,4009.7,4009.6,3.2e-07]
[1760124153717,2.31128081,4009.7,4009.6,3.2e-07]
[1760124154223,9.22123297,4009.7,4009.6,3.2e-07]
[1760124154425,39.46355216,4009.7,4009.6,3.2e-07]
[1760124154805,7.40095216,4009.7,4009.6,3.2e-07]
[1760124155119,12.44855216,4009.7,4009.6,3.2e-07]
[1760124155783,2.49356878,4010.4,4009.6,3.2e-07]
[1760124155982,0.1589,4010.6,4009.6,3.2e-07]
[1760124156195,3.88,4010.5,4009.6,3.2e-07]
[1760124156395,4.408,4010.4,4009.6,3.2e-07]
[1760124156971,2.4927625,4011.7,4009.6,3.2e-07]
[1760124156972,4.404,4010.6,4009.6,3.2e-07]
[1760124157208,2.08,4011.7,4009.6,3.2e-07]
[1760124157209,2.49273448,4011.7,4009.6,3.2e-07]
[1760124157409,4.402,4011.6,4009.6,3.2e-07]
[1760124157905,0.001,4009.7,4009.6,3.2e-07]
[1760124158333,0.001,4009.7,4009.6,0.44770032]
[1760124158477,0.001,4009.7,4009.6,3.2e-07]
[1760124158675,0.001,4009.7,4009.6,0.44770032]
[1760124159172,2.079,4012.3,4009.6,0.44770032]
[1760124159372,0.39086498,4010.9,4009.6,0.44770032]
[1760124159578,0.39086498,4010.9,4009.7,14.5]
[1760124159790,1.659,4011.5,4009.7,14.5]
[1760124160121,0.39085128,4010.7,4009.8,0.4477]
[1760124160323,3.379,4014.4,4009.8,0.4477]
[1760124160324,0.371,4011.7,4009.8,0.4477]
[1760124160474,0.39082048,4011.6,4009.8,0.4477]
[1760124160809,2.079,4013.2,4010.0,0.6336]
[1760124160996,0.253,4013.1,4010.2,0.6336]
[1760124161196,0.253,4013.1,4010.1,0.6642]
[1760124161197,0.39085214,4012.1,4010.1,0.6642]
[1760124161375,0.39085214,4012.1,4010.1,2.1712]
[1760124161576,0.39085214,4012.1,4010.2,3.40963641]
[1760124161798,0.39085214,4012.1,4010.3,4.388]
[1760124162213,0.39085214,4012.1,4010.4,0.4477]
[1760124162384,0.5,4012.0,4010.4,0.4477]
[1760124163308,0.5,4012.0,4010.1,14.7165]
[1760124163715,0.5,4012.0,4010.2,0.4477]
[1760124164135,0.5,4012.0,4010.5,3.12700064]
[1760124164432,0.5,4012.0,4010.6,0.4477]
[1760124164717,0.5,4012.0,4010.7,6.456]
[1760124164917,0.5,4012.0,4010.8,0.4477]
[1760124165078,0.5,4012.0,4010.9,0.02493206]
[1760124165414,0.5,4012.0,4011.1,0.6336]
[1760124165617,0.5,4012.0,4011.3,0.6336]
[1760124165817,0.5,4012.0,4011.5,0.6336]
[1760124166004,0.5,4012.0,4011.6,1.8877]
[1760124166205,0.41702517,4012.0,4011.7,0.4501]
[1760124166517,0.396,4015.0,4012.0,0.6336]
[1760124166733,2.48928818,4017.3,4012.4,0.6336]
[1760124166885,2.49003984,4016.0,4012.6,3.12573832]
[1760124167082,2.49091886,4014.6,4012.7,0.4501]
[1760124167392,0.112,4014.6,4012.1,0.2255]
[1760124167610,0.39074347,4015.1,4012.2,0.533]
[1760124167808,0.39074347,4015.1,4012.3,0.02492336]
[1760124168123,0.3793374,4016.6,4012.4,0.4501]
[1760124168284,0.39072489,4016.8,4012.5,0.02492211]
[1760124168486,2.581,4016.0,4012.6,0.4501]
[1760124168892,0.1904,4016.3,4012.6,0.4501]
[1760124169094,0.1904,4016.3,4012.7,4.356]
[1760124169282,0.1904,4016.3,4013.1,0.6336]
[1760124169488,0.53656932,4016.1,4013.2,0.4313]
[1760124169682,0.1904,4016.9,4013.3,14.52491715]
[1760124169887,0.1904,4016.9,4013.5,2.61559088]
[1760124170195,0.1904,4017.6,4013.7,2.49146001]
[1760124170393,0.71107763,4017.6,4013.8,0.4313]
[1760124170595,0.39055619,4016.7,4013.9,23.074]
[1760124170794,0.39055619,4016.7,4014.1,0.6336]
[1760124170995,0.1904,4019.3,4014.7,0.124]
[1760124171221,0.001,4020.2,4015.4,0.6336]
[1760124171433,0.39047729,4017.7,4015.8,0.6336]
[1760124171634,2.48758896,4020.0,4016.1,0.6336]
[1760124171928,0.39043328,4018.4,4016.3,0.7576]
[1760124172087,0.39043328,4018.4,4016.5,0.6336]
[1760124172289,0.39043328,4018.4,4016.6,1.44]
[1760124172543,0.39043328,4018.4,4016.7,14.9313]
[1760124172841,0.39043328,4018.4,4016.8,4.7743]
[1760124173078,0.001,4020.2,4016.9,0.4313]
[1760124173318,0.52429709,4020.1,4016.9,0.4313]
[1760124173539,0.001,4020.2,4017.0,14.5]
[1760124173688,0.001,4020.2,4017.3,0.6336]
[1760124173885,0.001,4020.2,4017.5,0.6336]
[1760124174089,0.001,4020.2,4017.9,0.124]
[1760124174314,0.001,4020.2,4018.1,0.6336]
[1760124174622,0.001,4020.2,4018.2,0.45618676]
[1760124174925,0.001,4020.2,4018.3,4.334]
[1760124175229,0.001,4020.2,4018.4,14.5]
[1760124175387,0.001,4020.2,4018.5,4.331]
[1760124175586,0.39011233,4019.4,4018.5,4.331]
[1760124175988,0.001,4020.2,4018.6,0.4313]
[1760124176187,0.39124098,4020.2,4018.6,0.4313]
[1760124176420,0.39124098,4020.2,4018.7,4.7623]
[1760124176724,0.001,4020.2,4018.7,4.7623]
[1760124176923,0.001,4020.2,4018.8,1.89618304]
[1760124176924,0.00725,4019.1,4018.8,1.89618304]
[1760124177221,0.00725,4019.1,4018.9,1.44]
[1760124177422,0.00725,4019.1,4019.0,15.96488181]
[1760124177610,0.00725,4019.1,4019.0,16.3713]
[1760124177808,0.00725,4019.1,4019.0,1.8713]
[1760124178126,0.00725,4019.1,4019.0,6.2013]